fUST/lending_fUST_20250824
["ID","MTS","AMOUNT","RATE_DAILY","PERIOD"]
[381078754,1756007446882,-151.0,0.000389,14]
[381078755,1756007446892,-151.0,0.000389,14]
[381078756,1756007446902,-151.0,0.000389,14]
[381078757,1756007446912,-151.0,0.000389,14]
[381078758,1756007446922,-151.0,0.000389,14]
[381078759,1756007446931,-151.0,0.000389,14]
[381078760,1756007446941,-151.0,0.000389,14]
[381078761,1756007446950,-151.0,0.000389,14]
[381078762,1756007446960,-151.0,0.000389,14]
[381078763,1756007446970,-151.0,0.000389,14]
[381078764,1756007446980,-151.0,0.000389,14]
[381078765,1756007446990,-151.0,0.000389,14]
[381078766,1756007446999,-151.0,0.000389,14]
[381078767,1756007447009,-151.0,0.000389,14]
[381078768,1756007447019,-151.0,0.000389,14]
[381078769,1756007447029,-151.0,0.000389,14]
[381078770,1756007447039,-151.0,0.000389,14]
[381078771,1756007447049,-151.0,0.000389,14]
[381078772,1756007447059,-151.0,0.000389,14]
[381078773,1756007447068,-151.0,0.000389,14]
[381078774,1756007447078,-151.0,0.000389,14]
[381078775,1756007447087,-278.65371,0.000389,14]
[381078776,1756007447097,-278.65371,0.000389,14]
[381078777,1756007447106,-278.65371,0.000389,14]
[381078778,1756007447116,-278.65371,0.000389,14]
[381078779,1756007447125,-151.0,0.000389,14]
[381078780,1756007447135,-176.218917,0.000389,14]
[381078781,1756007447145,-151.0,0.000389,14]
[381078782,1756007447155,-151.0,0.000389,14]
[381078783,1756007447164,-151.0,0.000389,14]
[381078784,1756007447174,-182.01622,0.000389,14]
[381078785,1756007447183,-182.01622,0.000389,14]
[381078786,1756007447193,-182.01622,0.000389,14]
[381078787,1756007447202,-182.01622,0.000389,14]
[381078788,1756007447212,-151.0,0.000389,14]
[381078789,1756007447222,-151.0,0.000389,14]
[381078790,1756007447231,-280.872841,0.000389,14]
[381078791,1756007447241,-151.0,0.000389,14]
[381078792,1756007447251,-280.872841,0.000389,14]
[381078793,1756007447260,-151.0,0.000389,14]
[381078794,1756007447270,-280.872841,0.000389,14]
[381078795,1756007447280,-280.872841,0.000389,14]
[381078796,1756007447289,-462.98077,0.000389,14]
[381078797,1756007447299,-462.98077,0.000389,14]
[381078798,1756007447308,-462.98077,0.000389,14]
[381078799,1756007447321,-327.73702,0.000389,14]
[381078800,1756007447331,-462.98077,0.000389,14]
[381078801,1756007447340,-327.73702,0.000389,14]
[381078802,1756007447350,-327.73702,0.000389,14]
[381078803,1756007447359,-327.73702,0.000389,14]
[381078804,1756007447369,-151.0,0.000389,14]
[381078805,1756007447379,-156.959414,0.000389,14]
[381078806,1756007447389,-151.0,0.000389,14]
[381078807,1756007447399,-151.0,0.000389,14]
[381078808,1756007447409,-151.0,0.000389,14]
[381078809,1756007447418,-151.0,0.000389,14]
[381078810,1756007447428,-151.0,0.000389,14]
[381078811,1756007447438,-386.646439,0.000389,14]
[381078812,1756007447447,-386.646439,0.000389,14]
[381078813,1756007447456,-386.646439,0.000389,14]
[381078814,1756007447466,-151.0,0.000389,14]
[381078815,1756007447476,-386.646439,0.000389,14]
[381078816,1756007447485,-151.0,0.000389,14]
[381078817,1756007447494,-318.477194,0.000389,14]
[381078818,1756007447504,-151.0,0.000389,14]
[381078819,1756007447513,-331.435338,0.000389,14]
[381078820,1756007447523,-318.477194,0.000389,14]
[381078821,1756007447532,-249.460903,0.000389,14]
[381078822,1756007447542,-318.477194,0.000389,14]
[381078823,1756007447551,-318.477194,0.000389,14]
[381078824,1756007447560,-1272.781778,0.000389,14]
[381078825,1756007447570,-1272.781778,0.000389,14]
[381078826,1756007447579,-1272.781778,0.000389,14]
[381078827,1756007447589,-1272.781778,0.000389,14]
[381078828,1756007447599,-151.0,0.000389,14]
[381078829,1756007447608,-151.0,0.000389,14]
[381078830,1756007447618,-151.0,0.000389,14]
[381078831,1756007447627,-151.0,0.000389,14]
[381078832,1756007447637,-151.0,0.000389,14]
[381078833,1756007447646,-151.0,0.000389,14]
[381078834,1756007447656,-151.0,0.000389,14]
[381078835,1756007447665,-151.0,0.000389,14]
[381078836,1756007447675,-151.0,0.000389,14]
[381078837,1756007447685,-151.0,0.000389,14]
[381078838,1756007447695,-151.0,0.000389,14]
[381078839,1756007447704,-151.0,0.000389,14]
[381078840,1756007447714,-180.895004,0.000389,14]
[381078841,1756007447723,-180.895004,0.000389,14]
[381078842,1756007447733,-180.895004,0.000389,14]
[381078843,1756007447743,-153.066741,0.000389,14]
[381078844,1756007447752,-180.895004,0.000389,14]
[381078845,1756007447762,-151.0,0.000389,14]
[381078846,1756007447771,-151.0,0.000389,14]
[381078847,1756007447781,-151.0,0.000389,14]
[381078848,1756007447790,-151.0,0.000389,14]
[381078849,1756007447800,-268.370144,0.000389,14]
[381078850,1756007447810,-284.230082,0.000389,14]
[381078851,1756007447819,-151.0,0.000389,14]
[381078852,1756007447829,-155.51094,0.000389,14]
[381078853,1756007447839,-155.51094,0.000389,14]
[381078854,1756007447848,-254.512641,0.000389,14]
[381078855,1756007447858,-155.51094,0.000389,14]
[381078856,1756007447869,-254.512641,0.000389,14]
[381078857,1756007447879,-155.51094,0.000389,14]
[381078858,1756007447888,-254.512641,0.000389,14]
[381078859,1756007447898,-254.512641,0.000389,14]
[381078860,1756007447908,-150.0,0.00039,120]
[381078861,1756007447918,-4092.06612484,0.00039,120]
[381078862,1756007447928,-331.84,0.00039,14]
[381078863,1756007447939,-221.27,0.00039,7]
[381078864,1756007447949,-12698.53451425,0.00039,120]
[381078865,1756007447959,-529.17068775,0.00039,120]
[381078866,1756007447969,-1001.53154875,0.00039149,5]
[381078867,1756007447979,-201.0,0.0003938,51]
[381078868,1756007447990,-16006.63,0.000394,14]
[381078869,1756007447999,-1194.34,0.00039726,120]
[381078870,1756007448010,-400.87353672,0.00039877,120]
[381078871,1756007448020,-293.45044853,0.000399,120]
[381078872,1756007448029,-994.50726832,0.000399,10]
[381078873,1756007448039,-6836.539978,0.000399,2]
[381078874,1756007448050,-1500.0,0.0003999,2]
[381078875,1756007448060,-202.20021287,0.00039999,30]
[381078876,1756007448070,-500.0,0.0004,2]
[381078877,1756007448080,-752424.64024046,0.0004,30]
[381078878,1756007448617,-7317.36748527,0.0004,30]
[381078879,1756007448900,-667.32873501,0.0004,30]
[381078880,1756007448911,-380.36253887,0.0004,30]
[381078881,1756007449449,-151.0,0.000294,7]
[381078882,1756007449460,-269.67339358,0.000294,7]
[381078883,1756007450258,-220.0,0.00025576,3]
[381078884,1756007450269,-16.62276142,0.000294,7]
[381078885,1756007450278,-273.62798608,0.000294,7]
[381078886,1756007450297,-12.66816892,0.000294,7]
[381078887,1756007450306,-151.0,0.000294,7]
[381078888,1756007450315,-286.296155,0.000294,7]
[381078889,1756007450328,-151.0,0.000294,7]
[381078890,1756007450337,-16.80865156,0.00033712,14]
[381078891,1756007450918,-134.19134844,0.00033712,14]
[381078892,1756007450927,-286.296155,0.00033712,14]
[381078893,1756007450936,-286.296155,0.00033712,14]
[381078894,1756007450964,-151.0,0.00033712,14]
[381078895,1756007450973,-286.296155,0.00033712,14]
[381078896,1756007450982,-151.0,0.00033712,14]
[381078897,1756007450992,-151.0,0.000389,14]
[381078898,1756007451001,-286.296155,0.000389,14]
[381078899,1756007451011,-286.296155,0.000389,14]
[381078900,1756007451021,-151.0,0.000389,14]
[381078901,1756007451031,-286.296155,0.000389,14]
[381078902,1756007451040,-151.0,0.000389,14]
[381078903,1756007451050,-748.96020183,0.0004,61]
[381078904,1756007451058,-297372.97848338,0.0004,30]
[381078905,1756007451070,-3811.88656089,0.0004,30]
[381078906,1756007451081,-14094.16222281,0.0004,30]
[381078907,1756007470669,164.628817,0.00013699,2]
[381078908,1756007562589,285.78435853,0.000199,2]
[381078909,1756007563461,285.78435839,0.00021627,2]
[381078910,1756007729221,266.73206785,0.000199,2]
[381078911,1756007729931,266.73206783,0.00021627,2]
[381078912,1756007799843,155.88846743,0.00021627,2]
[381078913,1756007897829,248.90464915,0.000199,2]
[381078914,1756007898747,248.90464909,0.00021627,2]
[381078915,1756008080822,232.34471238,0.000199,2]
[381078916,1756008081627,232.34471212,0.00021627,2]
[381078919,1756008190564,1711.85,0.0002941,30]
[381078920,1756008249793,216.80970803,0.00021627,2]
[381078921,1756008250445,216.80970818,0.000199,2]
[381078923,1756008421165,206.84603211,0.000199,2]
[381078924,1756008421592,206.84603191,0.00021627,2]
[381078925,1756008433094,-257.6809291,0.00023199,2]
[381079015,1756008564107,-242.3190709,0.00023199,2]
[381079016,1756008564127,-500.0,0.00023199,2]
[381079017,1756008564147,-500.0,0.00023199,2]
[381079018,1756008564167,-281.0,0.00023199,2]
[381079019,1756008564186,-300.0,0.00023199,2]
[381079020,1756008564206,-1000.0,0.000232,2]
[381079021,1756008564226,-1000.0,0.000232,2]
[381079022,1756008564245,-1000.0,0.000232,2]
[381079023,1756008564264,-1000.0,0.000232,2]
[381079024,1756008564287,-206.84603191,0.00023353,2]
[381079025,1756008564306,-157.21,0.00024,2]
[381079032,1756008591493,282.42863035,0.0002249,2]
[381079072,1756008632529,-89.89422707,0.0002249,2]
[381079074,1756008632539,-372.32285742,0.00024216,2]
[381079075,1756008632548,-372.32285742,0.00025943,4]
[381079077,1756008632557,-372.32285742,0.00027669,8]
[381079078,1756008632566,-376.22310801,0.00027736,2]
[381079079,1756008632575,-160.0,0.00027753,2]
[381079080,1756008632585,-2034.77998483,0.00027768,2]
[381079081,1756008632634,-496.97150749,0.00027768,2]
[381079082,1756008632645,-10166.78302193,0.00027768,2]
[381079083,1756008632655,-217.07852671,0.00027778,2]
[381079084,1756008632664,-215.99145658,0.00027778,2]
[381079085,1756008632673,-232.42214577,0.00028,7]
[381079086,1756008632685,-285.74900478,0.00028,2]
[381079087,1756008632695,-150.0,0.000284,2]
[381079088,1756008632704,-372.32285742,0.00029396,11]
[381079089,1756008632713,-150.0,0.00029407,2]
[381079091,1756008632723,-250.0,0.00029407,10]
[381079093,1756008632732,-250.0,0.00029407,10]
[381079095,1756008632741,-250.0,0.00029407,10]
[381079097,1756008632750,-250.0,0.00029407,10]
[381079099,1756008632759,-397.4250688,0.00031038,2]
[381079101,1756008632768,-372.32285742,0.00031123,15]
[381079103,1756008632777,-199.0,0.00032776,120]
[381079105,1756008632786,-372.32285742,0.00032849,19]
[381079107,1756008632795,-372.32285769,0.00032849,19]
[381079109,1756008632805,-176.014,0.00033438,2]
[381079110,1756008632815,-973.0,0.00034193,2]
[381079111,1756008632824,-372.32285742,0.00034576,23]
[381079112,1756008632834,-372.32285742,0.00036302,26]
[381079113,1756008632843,-179.71246006,0.00036332,16]
[381079114,1756008632853,-372.32285742,0.00038029,30]
[381079115,1756008632862,-199.0,0.000389,120]
[381079116,1756008632872,-201.0,0.0003938,51]
[381079117,1756008632881,-160.0,0.00039487,2]
[381079118,1756008632892,-372.32285742,0.00039755,34]
[381079119,1756008632902,-200.0,0.0003979,3]
[381079120,1756008632911,-3573.25803029,0.0003979,2]
[381079121,1756008632921,-184.02394104,0.000398,2]
[381079122,1756008632931,-872.8410649,0.000398,10]
[381079123,1756008632941,-184.02394104,0.0003985,2]
[381079124,1756008632951,-503.81093719,0.00039889,31]
[381079125,1756008632960,-156.76547975,0.00039889,31]
[381079127,1756008632969,-500.0,0.00039889,31]
[381079129,1756008632980,-192.29872091,0.00039889,2]
[381079130,1756008632990,-500.0,0.00039889,31]
[381079132,1756008632999,-500.0,0.00039889,31]
[381079134,1756008633010,-500.0,0.00039889,31]
[381079136,1756008633019,-500.0,0.00039889,31]
[381079138,1756008633030,-603.3923239,0.00039889,31]
[381079140,1756008633041,-232.42214577,0.0003989,3]
[381079142,1756008633052,-1733.64086269,0.0003989,3]
[381079144,1756008633066,-42347.32956561,0.0003989,3]
[381079146,1756008633078,-19774.0167316,0.0003989,3]
[381079148,1756008633091,-200.0,0.0003989,120]
[381079150,1756008633102,-160.0,0.0003989,3]
[381079152,1756008633113,-160.0,0.0003989,3]
[381079154,1756008633125,-479.92646251,0.00039899,31]
[381079156,1756008633135,-1000.0,0.00039899,2]
[381079158,1756008633145,-1000.0,0.00039899,2]
[381079160,1756008633155,-1000.0,0.00039899,2]
[381079162,1756008633165,-1000.0,0.00039899,2]
[381079163,1756008633175,-1000.0,0.00039899,2]
[381079165,1756008633184,-1000.0,0.00039899,2]
[381079167,1756008633195,-1000.0,0.00039899,2]
[381079168,1756008633204,-1000.0,0.00039899,2]
[381079169,1756008633214,-803.72724029,0.00039899,2]
[381079198,1756008638472,-196.27275971,0.00039899,2]
[381079199,1756008638482,-1000.0,0.00039899,2]
[381079200,1756008638491,-1000.0,0.00039899,2]
[381079201,1756008638500,-1000.0,0.00039899,2]
[381079202,1756008638510,-447.70933692,0.00039899,2]
[381079203,1756008638522,-552.29066308,0.00039899,2]
[381079204,1756008638531,-1000.0,0.00039899,2]
[381079205,1756008638540,-122.32135061,0.00039899,2]
[381079206,1756008638551,-561.90778376,0.00039899,2]
[381079207,1756008638563,-315.77086563,0.00039899,2]
[381079208,1756008638572,-1000.0,0.00039899,2]
[381079209,1756008638582,-417.46210498,0.00039899,2]
[381079210,1756008638592,-582.53789502,0.00039899,2]
[381079211,1756008638601,-1000.0,0.00039899,2]
[381079212,1756008638612,-305.45059397,0.00039899,2]
[381079213,1756008638624,-1120.8,0.00039899,120]
[381079214,1756008638633,-151.0,0.00039899,31]
[381079215,1756008638642,-370000.0,0.000399,2]
[381079216,1756008638653,-184.02394104,0.000399,2]
[381079217,1756008638663,-17766.39468103,0.000399,30]
[381079218,1756008638672,-529.17068775,0.000399,30]
[381079219,1756008638682,-199.0,0.000399,10]
[381079220,1756008638692,-500.0,0.00039973,5]
[381079221,1756008638702,-512.13917913,0.00039973,5]
[381079222,1756008638711,-532.62004632,0.00039973,5]
[381079223,1756008638720,-500.0,0.00039973,5]
[381079224,1756008638729,-161.38519004,0.00039973,5]
[381079225,1756008638739,-278.89879357,0.00039973,5]
[381079226,1756008638749,-22040.4852142,0.00039989,3]
[381079227,1756008638759,-9887.0083658,0.00039989,3]
[381079228,1756008638770,-510.44,0.00039989,3]
[381079229,1756008638780,-38570.8491248,0.0003999,3]
[381079230,1756008638789,-17302.2646402,0.0003999,3]
[381079231,1756008638799,-1500.0,0.0003999,2]
[381079232,1756008638808,-151.0,0.00039999,61]
[381079233,1756008638818,-300.0,0.00039999,61]
[381079234,1756008638827,-151.0,0.00039999,61]
[381079235,1756008638837,-151.0,0.00039999,61]
[381079236,1756008638847,-300.0,0.00039999,61]
[381079237,1756008638857,-300.0,0.00039999,61]
[381079238,1756008638867,-151.0,0.00039999,61]
[381079239,1756008638877,-250.0,0.00039999,61]
[381079240,1756008638887,-151.0,0.00039999,61]
[381079241,1756008638897,-151.0,0.00039999,61]
[381079242,1756008638907,-151.0,0.00039999,61]
[381079243,1756008638918,-300.0,0.00039999,61]
[381079244,1756008638927,-300.0,0.00039999,61]
[381079245,1756008638937,-250.0,0.00039999,61]
[381079246,1756008638946,-151.0,0.00039999,61]
[381079247,1756008638955,-151.0,0.00039999,61]
[381079248,1756008638965,-151.0,0.00039999,61]
[381079249,1756008638975,-156.587,0.00039999,61]
[381079250,1756008638984,-300.0,0.00039999,61]
[381079251,1756008638995,-250.0,0.00039999,61]
[381079252,1756008639008,-300.0,0.00039999,61]
[381079253,1756008639017,-151.0,0.00039999,61]
[381079254,1756008639027,-151.0,0.00039999,61]
[381079255,1756008639037,-151.0,0.00039999,61]
[381079256,1756008639046,-162.380719,0.00039999,61]
[381079257,1756008639056,-300.0,0.00039999,61]
[381079258,1756008639067,-151.0,0.00039999,61]
[381079259,1756008639077,-151.0,0.00039999,61]
[381079260,1756008639087,-250.0,0.00039999,61]
[381079261,1756008639096,-300.0,0.00039999,61]
[381079262,1756008639106,-168.3888056,0.00039999,61]
[381079263,1756008639115,-300.0,0.00039999,61]
[381079264,1756008639125,-151.3949455,0.00039999,61]
[381079265,1756008639135,-151.0,0.00039999,61]
[381079266,1756008639144,-151.0,0.00039999,61]
[381079267,1756008639153,-250.0,0.00039999,61]
[381079268,1756008639338,-300.0,0.00039999,61]
[381079269,1756008639350,-174.61919141,0.00039999,61]
[381079270,1756008639359,-300.0,0.00039999,61]
[381079271,1756008639368,-300.0,0.00039999,61]
[381079272,1756008639378,-151.0,0.00039999,61]
[381079273,1756008639387,-250.0,0.00039999,61]
[381079274,1756008639396,-181.08010149,0.00039999,61]
[381079275,1756008639405,-300.0,0.00039999,61]
[381079276,1756008639415,-151.0,0.00039999,61]
[381079277,1756008639424,-300.0,0.00039999,61]
[381079278,1756008639433,-151.0,0.00039999,61]
[381079279,1756008639443,-250.0,0.00039999,61]
[381079280,1756008639452,-187.78006525,0.00039999,61]
[381079281,1756008639461,-300.0,0.00039999,61]
[381079282,1756008639470,-151.0,0.00039999,61]
[381079283,1756008639479,-300.0,0.00039999,61]
[381079284,1756008639489,-151.0,0.00039999,61]
[381079285,1756008639498,-250.0,0.00039999,61]
[381079286,1756008639507,-194.72792766,0.00039999,61]
[381079287,1756008639517,-300.0,0.00039999,61]
[381079288,1756008639527,-1888.0,0.00039999,61]
[381079289,1756008639537,-153.43534154,0.00039999,61]
[381079290,1756008639546,-300.0,0.00039999,61]
[381079291,1756008639556,-250.0,0.00039999,61]
[381079292,1756008639565,-201.932861,0.00039999,61]
[381079293,1756008639574,-300.0,0.00039999,61]
[381079294,1756008639585,-1957.856,0.00039999,61]
[381079295,1756008639594,-300.0,0.00039999,61]
[381079296,1756008639604,-152.49188855,0.00039999,61]
[381079297,1756008639616,-16000.0,0.00039999,61]
[381079298,1756008639626,-302.34349528,0.00039999,61]
[381079299,1756008639635,-16592.0,0.00039999,61]
[381079300,1756008639645,-2030.296672,0.00039999,61]
[381079301,1756008639655,-17205.904,0.00039999,61]
[381079302,1756008639664,-2105.41764886,0.00039999,61]
[381079303,1756008639673,-17842.522448,0.00039999,61]
[381079304,1756008639684,-2183.31810187,0.00039999,61]
[381079305,1756008639697,-2264.10087164,0.00039999,61]
[381079306,1756008639707,-18502.69577858,0.00039999,61]
[381079307,1756008639716,-151.44244653,0.00039999,61]
[381079308,1756008639727,-2347.87260389,0.00039999,61]
[381079309,1756008639736,-19187.29552238,0.00039999,61]
[381079310,1756008639746,-2434.74389024,0.00039999,61]
[381079311,1756008639756,-19897.22545671,0.00039999,61]
[381079312,1756008639765,-2524.82941417,0.00039999,61]
[381079313,1756008639775,-20633.42279861,0.00039999,61]
[381079314,1756008639784,-2618.2481025,0.00039999,61]
[381079315,1756008639795,-5209.14621391,0.00039999,61]
[381079316,1756008639805,-574.28485609,0.00039999,61]
[381079317,1756008639814,-500.0,0.00039999,61]
[381079318,1756008639824,-500.0,0.00039999,61]
[381079319,1756008639834,-500.0,0.00039999,61]
[381079320,1756008639844,-500.0,0.00039999,61]
[381079321,1756008639854,-500.0,0.00039999,61]
[381079322,1756008639863,-500.0,0.00039999,61]
[381079323,1756008639872,-500.0,0.00039999,61]
[381079324,1756008639882,-500.0,0.00039999,61]
[381079325,1756008639891,-500.0,0.00039999,61]
[381079326,1756008639901,-159694.48166636,0.0004,30]
[381079327,1756008639914,-1149.00000072,0.0004,30]
[381079328,1756008639926,-304.18573101,0.0004,30]
[381079329,1756008639957,-528.08298489,0.0004,30]
[381079331,1756008640460,-199.0,0.00039799,120]
[381079332,1756008640470,-1804.263271,0.0004,30]
[381079333,1756008640481,-1000.0560591,0.0004,30]
[381079334,1756008640493,-3411.8,0.0004,30]
[381079340,1756008643562,-112162.14814076,0.0004,30]
[381079341,1756008643615,-521.94346975,0.0004,30]
[381079383,1756008646713,-282.72,0.0004,30]
[381080260,1756008764405,-240.94721516,0.0002249,2]
[381080261,1756008768830,-21.31826228,0.0002249,2]
[381080262,1756008768854,-190.23741672,0.0002249,2]
[381080263,1756008771581,-268.72716882,0.0002249,2]
[381080264,1756008927558,262.26547744,0.00020763,2]
[381080266,1756009432406,267.34570428,0.00020763,2]
[381080272,1756009715659,8840.49691038,0.00017,2]
[381080273,1756009721559,180.2781556,0.0002,120]
[381080274,1756009727337,30.73326822,0.00019063,2]
[381080275,1756009727358,11470.50837006,0.00019063,2]
[381080276,1756009756154,-5000.0,0.00023776,2]
[381080277,1756009756173,-182.61459,0.00024016,2]
[381080278,1756009756199,-368.98358477,0.00024115,2]
[381080279,1756009765610,-178.11564143,0.0002249,2]
[381080280,1756009767797,-165.37739025,0.0002249,2]
[381080281,1756009828597,-176.70759056,0.000225,2]
[381080289,1756009831713,-753.98541086,0.000225,2]
[381080290,1756009831723,-603.73902777,0.00024115,2]
[381080291,1756009831734,-596.26097223,0.00024115,2]
[381080292,1756009831744,-160.0,0.00024116,2]
[381080293,1756009831754,-52.09315203,0.00024116,2]
[381080294,1756009831775,-8464.00599362,0.00024116,2]
[381080295,1756009831784,-343.49303168,0.00024216,2]
[381080297,1756009831793,-300.0,0.00024999,2]
[381080299,1756009831803,-300.0,0.00024999,2]
[381080301,1756009831811,-300.0,0.00024999,2]
[381080304,1756009831820,-300.0,0.00024999,2]
[381080307,1756009831828,-300.0,0.00024999,2]
[381080310,1756009831837,-302.00000054,0.00025,5]
[381080312,1756009831846,-343.49303168,0.00025943,4]
[381080316,1756009831855,-515.2395477,0.00025943,4]
[381080318,1756009831864,-1658.93983757,0.00026,30]
[381080320,1756009831873,-831.0,0.00026268,2]
[381080321,1756009831883,-4585.46123444,0.00026573,2]
[381080332,1756009837738,-199.0,0.000259,30]
[381080333,1756009837747,-2845.61393867,0.00026573,2]
[381080334,1756009837756,-180.6915355,0.00026771,2]
[381080335,1756009837766,-366.49452569,0.00027082,2]
[381080336,1756009837777,-53.50547431,0.00027082,2]
[381080337,1756009837786,-308.0,0.00027082,2]
[381080338,1756009837795,-139.99082569,0.00027092,2]
[381080339,1756009837806,-221.88084712,0.00027092,2]
[381080340,1756009837815,-201.91082219,0.0002739,2]
[381080341,1756009837841,-298.7527457,0.0002739,2]
[381080343,1756009837850,-343.49303168,0.00027669,8]
[381080344,1756009837860,-160.0,0.0002775,2]
[381080346,1756009837869,-376.22310801,0.00027765,2]
[381080348,1756009837878,-160.0,0.00027765,2]
[381080349,1756009837888,-844.67759735,0.00028,7]
[381080350,1756009837897,-168.0,0.00028348,2]
[381080351,1756009837906,-168.0,0.00028827,2]
[381080353,1756009837916,-168.0,0.00028831,2]
[381080354,1756009837925,-168.0,0.00028848,2]
[381080355,1756009837934,-3716.45799434,0.00029,2]
[381080356,1756009837943,-168.0,0.00029171,7]
[381080357,1756009837953,-168.0,0.00029222,2]
[381080358,1756009837962,-168.0,0.00029229,2]
[381080359,1756009837971,-168.0,0.00029278,2]
[381080360,1756009837980,-587.0,0.00029339,2]
[381080361,1756009837989,-184.02394104,0.00029342,2]
[381080362,1756009837999,-3126.60077653,0.00029342,2]
[381080363,1756009838008,-480.0553941,0.00029342,2]
[381080364,1756009838017,-343.49303168,0.00029396,11]
[381080365,1756009838026,-151.0,0.000294,18]
[381080366,1756009838035,-151.0,0.000294,18]
[381080367,1756009838046,-151.0,0.000294,12]
[381080368,1756009838055,-168.0,0.00029416,7]
[381080369,1756009838064,-510.44,0.00029432,3]
[381080370,1756009838073,-335.94852376,0.00029441,2]
[381080371,1756009838083,-289.26581377,0.00029441,2]
[381080372,1756009838091,-374.48010092,0.00029442,2]
[381080373,1756009838101,-265.048983,0.00029442,10]
[381080374,1756009838109,-1308666.60880258,0.00029442,20]
[381080375,1756009838119,-313.70407185,0.00029442,2]
[381080376,1756009838128,-15241.06026139,0.00029442,2]
[381080377,1756009838137,-161.38519004,0.00029473,5]
[381080378,1756009838146,-500.0,0.00029473,5]
[381080379,1756009838155,-512.13917913,0.00029473,5]
[381080380,1756009838165,-500.0,0.00029473,5]
[381080381,1756009838174,-500.0,0.00029473,5]
[381080382,1756009838183,-168.0,0.00029483,2]
[381080383,1756009838192,-193.67,0.000295,7]
[381080384,1756009838202,-946.87,0.000295,7]
[381080385,1756009838212,-3077.68296144,0.000295,2]
[381080386,1756009838221,-14405.96,0.000295,2]
[381080387,1756009838231,-168.0,0.00029539,7]
[381080388,1756009838240,-168.0,0.00029735,2]
[381080389,1756009838250,-168.0,0.00029781,2]
[381080390,1756009838259,-647.66914228,0.0003,4]
[381080391,1756009838268,-1000.0,0.00030021,5]
[381080392,1756009838277,-168.0,0.00030308,2]
[381080393,1756009838287,-168.0,0.00030342,2]
[381080394,1756009838296,-699.95,0.00030442,2]
[381080395,1756009838305,-168.0,0.0003045,7]
[381080396,1756009838315,-1500.0,0.00030568,5]
[381080397,1756009838324,-168.0,0.00030843,2]
[381080398,1756009838334,-156.0,0.00031,120]
[381080399,1756009838343,-1535.98602722,0.00031116,5]
[381080400,1756009838352,-343.49303168,0.00031123,15]
[381080401,1756009838362,-168.0,0.00031137,2]
[381080402,1756009838372,-5000.0,0.00031442,4]
[381080403,1756009838381,-3126.60077646,0.00032807,2]
[381080404,1756009838390,-1000.0,0.00032876,15]
[381080405,1756009838400,-156.0,0.000335,120]
[381080406,1756009838409,-161.19559496,0.00033627,30]
[381080407,1756009838418,-1000.0,0.00034246,15]
[381080408,1756009838427,-1054.70615657,0.00034642,5]
[381080409,1756009838436,-194.58551035,0.0003492,30]
[381080410,1756009838446,-500.0,0.00035,30]
[381080411,1756009838455,-500.0,0.00035,30]
[381080412,1756009838465,-500.0,0.00035,30]
[381080413,1756009838474,-262.30730692,0.00035,120]
[381080414,1756009838483,-500.0,0.00035,120]
[381080415,1756009838492,-433.92,0.00035,120]